Cogmind - Beta 16 @@@ ROGUE MODE // 2026.01.10 @ 23:02:56 Player: AnotherZach Result: Destroyed by G-73 Enforcer with Heavy Laser Performance ------------- Evolutions (8) 4000 Regions Visited (18) 3600 Robots Destroyed (159) 795 Value Destroyed (7127) 7127 Prototype IDs (24) 480 Alien Tech Used (0) 0 Bonus (2239) 2239 TOTAL SCORE: 18241 Bonus ------- High Alert Combat Kills 221 Follower Combat Kills 468 Entered Garrisons 600 Used RIF Installer 500 Entered DSFs 500 Friendly Fire -50 Cogmind --------- Core Integrity 0/1450 Matter 300/300 Energy 65/100 System Corruption 51% Temperature Cool (0) Movement Core (50) Location -2/Garrison Parts ------- > --- POWER (2) -------- (None) > --- PROPULSION (7) --- (None) > --- UTILITY (10) ----- Spectral Analyzer Relay Coupler [NC] (34) > --- WEAPON (4) ------- (None) > --- INVENTORY (5) ---- Compact Matter Pod (150) Relay Coupler [Grunt] (25) Long-range Tractor Beam Disintegrator Peak State ------------ > --- POWER ------------ Reinforced Deuterium Engine Quantum-Particle Reactor > --- PROPULSION ------- Improved Titanium Leg Myomer Leg Flying Antigrav-Myomer Exoskeleton > --- UTILITY ---------- Armored Scrap Engine Experimental Power Amplifier Advanced Heat Sink Advanced Heat Sink High-capacity Storage Unit Spectral Analyzer Advanced Reaction Control System Centrium Heavy Armor Plating > --- WEAPON ----------- Compact HERF Cannon Disintegrator Railgun > --- INVENTORY -------- Compact Particle Reactor Medium Treads Large Storage Unit Compact Matter Pod Advanced Signal Interpreter Layered Light Armor Plating Advanced Thermal Shield Relay Coupler [Hunter] Long-range Tractor Beam Advanced Datajack Advanced Remote Datajack Improved Plasma Cutter [Rating: 168] Favorites ----------- Power Constructs Engine Heavy Ion Engine Power Core Light Nuclear Core Reactor Constructs Propulsion Constructs Treads Light Treads Leg Aluminum Leg Wheel Wheel Hover Unit Improved Antigrav System Flight Unit Constructs Utility Armored Scrap Engine Device Armored Scrap Engine Storage Large Storage Unit Processor Advanced Signal Interpreter Hackware Relay Coupler [Hunter] Protection Centrium Heavy Armor Plating Weapon Constructs Energy Gun Constructs Energy Cannon Advanced Plasma Cannon Ballistic Gun Light Assault Rifle Launcher Precision Rocket Launcher Special Weapon Remote Datajack Impact Weapon Maul Special Melee Weapon Improved Datajack Build | -11 -10 -9 -9 -9 -7 -7 -7 -6 -6 -6 -6 -5 -5 -4 -3 -3 -2 -2 ------- Run | Yrd Mat Mat Sto Rec Fac Was Fac Fac Gar Fac Gar Fac DSF Fac Res Tes Res Gar Slots Evolved 16 | . . 2 . . 4 . . 2 . . . 2 . 2 2 . 2 . Power 1 | . . . . . 1 . . . . . . . . . . . . . Propulsion 5 | . . 2 . . 1 . . 1 . . . . . . . . 1 . Utility 8 | . . . . . 2 . . 1 . . . 1 . 2 1 . 1 . Weapon 2 | . . . . . . . . . . . . 1 . . 1 . . . Parts Attached 137 | 7 3 5 26 6 2 . 1 7 9 2 3 2 5 4 2 29 16 8 Power 11 | 1 . 1 2 . . . 1 . 3 . . . 1 . . 1 1 . Engine 5 | 1 . 1 2 . . . . . 1 . . . . . . . . . Core 3 | . . . . . . . 1 . 2 . . . . . . . . . Reactor 3 | . . . . . . . . . . . . . 1 . . 1 1 . Propulsion 35 | 2 2 2 16 4 . . . . 1 . . . . 1 . 2 3 2 Treads 11 | . 2 2 . 4 . . . . . . . . . 1 . . 1 1 Leg 9 | . . . 7 . . . . . . . . . . . . . 2 . Wheel 6 | 2 . . 4 . . . . . . . . . . . . . . . Hover 2 | . . . . . . . . . . . . . . . . 2 . . Flight 7 | . . . 5 . . . . . 1 . . . . . . . . 1 Utility 57 | 2 1 1 3 1 1 . . 5 4 1 1 2 2 2 2 15 9 5 Device 25 | 1 . . 1 1 1 . . 2 1 . . . . 2 2 9 5 . Storage 5 | 1 1 . . . . . . . . . . . 1 . . . 1 1 Processor 4 | . . . . . . . . . . . . 1 . . . 3 . . Hackware 12 | . . . . . . . . 2 1 1 1 . . . . 2 1 4 Protection 11 | . . 1 2 . . . . 1 2 . . 1 1 . . 1 2 . Artifact . | . . . . . . . . . . . . . . . . . . . Weapon 34 | 2 . 1 5 1 1 . . 2 1 1 2 . 2 1 . 11 3 1 Energy Gun 8 | 1 . . 1 . . . . . . . . . . . . 5 1 . Energy Cannon 10 | . . . . . . . . 2 . . 1 . 1 1 . 4 1 . Ballistic Gun 4 | 1 . . . . . . . . . . . . . . . 1 1 1 Ballistic Cannon . | . . . . . . . . . . . . . . . . . . . Launcher 4 | . . 1 1 1 . . . . . . 1 . . . . . . . Special Weapon 3 | . . . . . . . . . . 1 . . 1 . . 1 . . Impact Weapon 4 | . . . 3 . 1 . . . . . . . . . . . . . Slashing Weapon . | . . . . . . . . . . . . . . . . . . . Piercing Weapon . | . . . . . . . . . . . . . . . . . . . Special Melee Weapon 1 | . . . . . . . . . 1 . . . . . . . . . Unidentified Prototypes 15 | . . . 4 2 . . . . . . . . 1 . . 7 1 . Corrupted Parts 2 | . . . . . . . . . . . . . . . . 1 . 1 System Corruption 8 | . . . . . . . . . . . . . . . . 3 . 5 Parts Lost 73 | . 3 . 12 1 . 1 . . 3 . 1 . . . . 17 14 21 Power 11 | . 1 . 2 . . . . . 2 . . . . . . 2 2 2 Propulsion 22 | . . . 6 . . . . . 1 . . . . . . 4 2 9 Utility 25 | . 1 . 4 1 . 1 . . . . . . . . . 5 6 7 Weapon 15 | . 1 . . . . . . . . . 1 . . . . 6 4 3 Highest Loss Streak 12 | . 2 . 4 1 . 1 . . 2 . 1 . . . . 5 6 12 To Critical Strikes 4 | . . . . . . . . . . . . . . . . 1 1 2 Average Backups 12 | 2 5 2 8 10 2 4 5 8 13 12 13 11 14 17 18 18 15 9 Power . | . 1 . . . . . 1 1 1 1 1 1 1 1 1 1 1 . Propulsion 3 | 1 3 1 3 7 1 2 3 2 2 2 3 4 4 3 4 3 1 . Utility 5 | . . 1 2 1 . . . 3 7 7 7 5 8 9 8 8 8 5 Weapon 1 | . . . 2 . 1 . 1 1 . . 1 . . 1 3 3 1 1 Tool/Special . | . . . . . . . . . . . . . . . . . . . Unused Backups 28 | . . . 3 5 . . . . 2 1 . . 6 3 . 1 2 5 Power 1 | . . . . . . . . . 1 . . . . . . . . . Propulsion 12 | . . . 1 4 . . . . 1 1 . . 3 1 . 1 . . Utility 13 | . . . 2 1 . . . . . . . . 3 1 . . 2 4 Weapon . | . . . . . . . . . . . . . . . . . . . Tool/Special 2 | . . . . . . . . . . . . . . 1 . . . 1 Average Slot Usage (%) 70 | . 89 93 93 72 52 51 44 64 64 73 71 68 70 71 63 66 64 35 Engine 5 | . 13 10 10 9 7 7 7 6 2 . 5 5 5 2 . . 2 . Core 1 | . . . . . . . 5 6 6 6 6 5 3 . . . . . Reactor 2 | . . . . . . . . . . 6 . . 1 7 9 7 5 1 Treads 7 | . 9 43 17 17 . . . . . . . . . 1 9 4 . 2 Leg 4 | . . . 10 13 . . . . . . . . . . . . 8 . Wheel 1 | . 18 . 8 . . . . . . . . . . . . . . . Flight 6 | . . . 5 1 14 15 15 20 13 20 20 17 17 11 . . . 2 Device 10 | . 5 . . 6 14 13 7 12 12 12 13 11 6 14 19 15 16 4 Storage 6 | . 14 11 9 6 7 7 7 6 6 6 6 5 5 5 4 4 4 4 Processor 2 | . . . . . . . . . . . . 5 5 5 4 8 9 4 Protection 3 | . . 9 9 . . . . 3 5 6 2 3 4 5 4 2 2 . Energy Gun 1 | . 13 . 1 . . . . . . . . . . . . 2 2 . Energy Cannon 4 | . . . . . . . . 6 5 . 1 5 5 11 11 11 6 1 Ballistic Gun 1 | . 14 11 . . . . . . 3 1 . . . . . 1 2 1 Launcher 2 | . . 7 2 10 . 4 . . . . . . . . . . . . Impact Weapon 3 | . . . 17 6 6 2 . . . . . . . . . . . . Peak Build Rating 168 | 7 7 10 24 42 43 51 40 66 86 88 87 83 105 131 136 166 168 139 Average Rating 70 | 5 6 9 14 27 41 47 39 58 65 86 76 82 97 120 131 131 142 79 On Entrance 64 | . 7 4 10 24 42 42 46 40 66 86 87 74 83 105 131 134 136 108 Avg Prop Armor Cover (%) 7 | . 3 . 13 . . . . . 1 . . . . 6 6 5 6 13 Naked Turns . | . . . . . . . . . . . . . . . . . . . Heaviest Build 144 | 12 27 36 45 45 36 44 33 53 58 48 48 55 103 115 113 130 144 85 Greatest Support 208 | 32 40 80 80 88 93 93 93 98 127 127 127 127 127 127 115 185 208 96 Greatest Overweight (x) 4 | . 1 . 4 1 . . . . . . . . . 1 . 1 1 . Average Overweight (x) . | . . . . . . . . . . . . . . . . . . . Largest Inventory Capacity 20 | 8 15 15 15 15 15 15 15 15 15 15 15 15 20 20 20 20 20 20 Average Capacity 15 | 7 14 15 14 11 15 15 15 15 15 15 15 15 17 20 20 20 20 17 Most Carried 20 | 4 6 5 15 15 6 6 6 15 15 15 15 13 20 20 20 20 20 12 Average Carried 13 | 2 5 2 9 11 3 4 6 9 13 13 14 12 16 19 19 19 17 10 Final Capacity 20 | 8 15 15 15 5 15 15 15 15 15 15 15 15 20 20 20 20 20 5 Final Carried 20 | 4 6 3 15 5 4 4 6 15 15 15 14 13 19 20 20 20 12 5 Scrap Engine Consumption 140 | . . . . 36 . . 4 3 30 9 1 . 12 1 . 38 6 . Constructs Created 9 | . . . . 2 . . . . 3 . . . . 1 . 2 1 . Constructs Modified 45 | . . . . 5 . . . . 14 1 3 . . 10 . 5 3 4 Class Distribution -------------------- 34% | Mutant 31% | Construct 14% | Tank 5% | Commander-Mutant 5% | Scavenger-Gunner 3% | Skirmisher Dominant Class ---------------- Mutant | -10/Materials Mutant | -9/Materials Mutant | -9/Storage Mutant | -9/Recycling Construct | -7/Factory Construct | -7/Waste Construct | -7/Factory Construct | -6/Factory Construct | -6/Garrison Construct | -6/Factory Construct | -6/Garrison Construct | -5/Factory Construct | -5/DSF Tank | -4/Factory Skirmisher | -3/Research Tank | -3/Testing Tank | -2/Research Mutant | -2/Garrison Resources | -11 -10 -9 -9 -9 -7 -7 -7 -6 -6 -6 -6 -5 -5 -4 -3 -3 -2 -2 ----------- Run | Yrd Mat Mat Sto Rec Fac Was Fac Fac Gar Fac Gar Fac DSF Fac Res Tes Res Gar Matter Collected 3655 | 232 114 . 617 139 . 119 . 241 452 77 . . 205 128 . 797 450 84 Remotely . | . . . . . . . . . . . . . . . . . . . Salvage Created 8163 | 170 369 115 1105 831 . 433 . 261 594 222 50 . . 543 . 2109 1321 40 Parts 312 | 8 19 15 42 19 . . . 12 28 6 1 . . 18 . 98 45 1 Haulers Intercepted 7 | . 1 . 4 . . . . 1 . . . . . . . 1 . . Recyclers Shooed 7 | . 3 . . . . . . 1 . . . . . 1 . 1 1 . Parts Field Recycled . | . . . . . . . . . . . . . . . . . . . Retrieved Matter . | . . . . . . . . . . . . . . . . . . . Parts Self-Destructed . | . . . . . . . . . . . . . . . . . . . Prevented . | . . . . . . . . . . . . . . . . . . . Parts Restored . | . . . . . . . . . . . . . . . . . . . Kills | -11 -10 -9 -9 -9 -7 -7 -7 -6 -6 -6 -6 -5 -5 -4 -3 -3 -2 -2 ------- Run | Yrd Mat Mat Sto Rec Fac Was Fac Fac Gar Fac Gar Fac DSF Fac Res Tes Res Gar Combat Hostiles Destroyed 114 | . 6 7 19 8 . 2 . 3 13 5 3 . . 4 . 27 12 5 Melee 18 | . . . 3 6 . . . . . . . . . . . 3 1 5 Guns 14 | . 6 . 1 . . . . . . . . . . . . 5 2 . Cannons 37 | . . . . . . . . . 8 3 . . . 4 . 14 8 . AOE 28 | . . 7 7 . . 2 . 3 5 1 3 . . . . . . . Classes Destroyed 20 | 2 4 . 4 2 . 1 . 1 2 1 . . . . . 3 . . Worker 7 | . 1 . 3 . . . . . . . . . . . . 2 1 . Builder 8 | . . . 3 . . . . . . . . . . 1 . 2 2 . Tunneler 4 | 4 . . . . . . . . . . . . . . . . . . Hauler 7 | . 1 . 4 . . . . 1 . . . . . . . 1 . . Recycler 14 | 1 1 . 1 5 . . . 1 . . . . . 2 . . 3 . Mechanic 1 | . . . 1 . . . . . . . . . . . . . . . Operator 1 | . . . . . . . . 1 . . . . . . . . . . Watcher 2 | . . . 1 . . . . . . . . . . . . . 1 . Swarmer 23 | . 2 4 4 . . . . 3 7 . . . . . . . . 3 Grunt 36 | . 4 3 9 1 . . . . 4 2 2 . . 2 . 4 5 . Brawler 1 | . . . . . . . . . . . . . . . . 1 . . Duelist 2 | . . . . . . . . . . . . . . . . 1 1 . Researcher 1 | . . . . . . . . . . . . . . . . 1 . . Sentry 17 | . . . 6 4 . . . . . 1 1 . . . . 4 1 . Hunter 6 | . . . . . . . . . 1 1 . . . . . 4 . . Programmer 23 | . . . . . . . . . . 1 . . . 2 . 13 5 2 Behemoth 1 | . . . . . . . . . 1 . . . . . . . . . Compactor 2 | . . . . . . 2 . . . . . . . . . . . . Scientist 1 | . . . . 1 . . . . . . . . . . . . . . Scrapper 3 | . . . . 3 . . . . . . . . . . . . . . Best Kill Streak 8 | 5 3 4 8 4 . 1 . 3 3 2 3 . . 2 . 6 5 2 Combat Bots Only 5 | . 3 4 5 3 . 1 . 3 3 2 3 . . 2 . 5 3 2 Max Kills in Single Turn 4 | 1 1 4 3 1 . 1 . 3 2 1 1 . . 1 . 2 2 1 Gunslinging . | . . . . . . . . . . . . . . . . . . . Exploded 4 | . . 4 2 . . 1 . 3 2 1 1 . . . . . . . Melee 1 | . . . 1 1 . . . . . . . . . . . 1 1 1 Uniques/NPCs Destroyed . | . . . . . . . . . . . . . . . . . . . Combat | -11 -10 -9 -9 -9 -7 -7 -7 -6 -6 -6 -6 -5 -5 -4 -3 -3 -2 -2 -------- Run | Yrd Mat Mat Sto Rec Fac Was Fac Fac Gar Fac Gar Fac DSF Fac Res Tes Res Gar Hostile Shots Fired 1745 | . 48 11 141 63 . 2 . 4 169 80 75 . . 44 . 442 397 269 Missed 582 | . 17 4 40 14 . 1 . 1 77 33 34 . . 10 . 130 148 73 Hits 1163 | . 31 7 101 49 . 1 . 3 92 47 41 . . 34 . 312 249 196 Melee 10 | . . . . . . 1 . . . . 2 . . . . 4 3 . Projectile 1153 | . 31 7 101 49 . . . 3 92 47 39 . . 34 . 308 246 196 AOE 2 | . . . 1 . . . . . . . . . . . . . 1 . Critical Strikes 57 | . . . 3 4 . 1 . . 2 . . . . 1 . 19 17 10 Part Disruptions 2 | . . . . . . . . . . . . . . . . 1 1 . Damage Taken 23418 | 8 351 81 1473 695 . 38 . 53 1740 586 759 . . 748 . 6661 5667 4558 Core 2913 | . 38 10 168 79 . . . 33 209 100 140 . . 80 . 598 419 1039 Absorbed by Shields 221 | . . . . 30 . . . . 5 . . . . . . . . 186 Reduced by Siege Mode 11 | . . . . . . . . . . . . . . . . 11 . . Ignored by Resistances 216 | . . . . . . . . . . . . . . . . . 216 . Regen/Repaired (Parts) 3058 | . . . 90 . . . . . 407 50 218 . . 406 . 841 611 435 Core Remaining (%) 76 | 100 84 . . 35 . . 100 . . . 43 . 100 93 . 54 . . Volleys Fired 422 | 13 33 4 19 . . 12 . 18 68 25 18 . 1 27 2 113 60 9 Largest 4 | 2 2 2 1 . . 1 . 2 2 2 1 . 3 3 3 4 4 1 Hottest 350 | 60 60 50 56 . . 39 . 145 145 93 45 . 150 241 198 350 325 200 Shots Fired 936 | 26 65 7 19 . . 12 . 22 112 27 18 . 3 78 6 358 174 9 Gun 333 | 26 65 4 12 . . . . . 24 2 . . . . . 100 94 6 Cannon 536 | . . . . . . . . 21 73 20 8 . 2 77 6 249 77 3 Launcher 41 | . . 3 7 . . 12 . 1 15 . 3 . . . . . . . Special 26 | . . . . . . . . . . 5 7 . 1 1 . 9 3 . Kinetic 140 | 13 33 4 . . . . . . 5 2 . . . . . 27 50 6 Thermal 547 | . . . 12 . . . . 21 73 20 8 . 3 78 6 247 78 1 Explosive 41 | . . 3 7 . . 12 . 1 15 . 3 . . . . . . . Electromagnetic 184 | 13 32 . . . . . . . 19 . . . . . . 75 43 2 Robot Hit Streak 34 | 8 9 2 10 . . . . 12 15 6 10 . . 7 . 34 11 1 Robot Miss Streak 6 | 2 5 . 3 . . . . 3 4 2 2 . . 5 . 6 5 2 Penetration Max 2 | . . . . . . . . . . . . . . . . . 2 . Secondary Targets 1 | . 1 . . . . . . . . . . . . . . . . . Max Gunslinging Chain 1 | . 1 . . . . . . . . . . . . . . . . . Shots Hit Robots 555 | 19 38 1 66 30 . . . 8 72 20 9 . . 22 . 184 85 1 Core Hits 276 | 7 20 9 22 6 . 12 . 8 28 7 17 . . 12 . 75 38 15 Critical Kills 5 | . . . 2 1 . . . . . . . . . . . 1 1 . Critical Parts Destroyed 18 | . . . 10 7 . . . . . . . . . . . . 1 . Critical Strikes 28 | . . . 16 8 . . . . . . . . . . . 1 3 . Burn 3 | . . . 3 . . . . . . . . . . . . . . . Meltdown 2 | . . . . . . . . . . . . . . . . 1 1 . Destroy 1 | . . . . . . . . . . . . . . . . . 1 . Corrupt 1 | . . . . . . . . . . . . . . . . . 1 . Smash 21 | . . . 13 8 . . . . . . . . . . . . . . Melee Attacks 137 | . . . 85 37 11 . . . 4 . . . . . . . . . Impact 133 | . . . 85 37 11 . . . . . . . . . . . . . Slashing . | . . . . . . . . . . . . . . . . . . . Piercing . | . . . . . . . . . . . . . . . . . . . Sneak Attacks 20 | . . . 9 9 . . . . 2 . . . . . . . . . Combat Hostiles . | . . . . . . . . . . . . . . . . . . . Follow-up Attacks 5 | . . . 5 . . . . . . . . . . . . . . . Damage Inflicted 22080 | 276 461 345 3099 1301 . 1992 . 404 2426 427 431 . . 913 . 6006 3238 761 Guns 4471 | 208 441 18 156 . . . . . 254 . . . . . . 1857 1511 26 Cannons 8188 | . . . . . . . . 242 1165 427 52 . . 802 . 3930 1570 . Explosions 4662 | 68 . 327 616 . . 1992 . 162 1007 . 379 . . 111 . . . . Melee 3624 | . . . 2327 1297 . . . . . . . . . . . . . . Ramming 1135 | . 20 . . 4 . . . . . . . . . . . 219 157 735 Kinetic 1602 | 61 142 18 . . . . . . 52 . . . . . . 457 846 26 Thermal 9257 | 68 . . 156 . . . . 242 1165 427 52 . . 913 . 4489 1745 . Explosive 4483 | . . 327 616 . . 1992 . 162 1007 . 379 . . . . . . . Electromagnetic 1979 | 147 299 . . . . . . . 202 . . . . . . 841 490 . Impact 3624 | . . . 2327 1297 . . . . . . . . . . . . . . Slashing . | . . . . . . . . . . . . . . . . . . . Piercing . | . . . . . . . . . . . . . . . . . . . Highest Corruption 50 | . 1 . 1 1 . 9 9 . 1 2 3 . . 3 . 42 30 50 Average Corruption 9 | . 1 . 1 1 . 9 9 . 1 1 2 . . 2 . 20 14 42 Corruption Purged . | . . . . . . . . . . . . . . . . . . . Corruption Blocked . | . . . . . . . . . . . . . . . . . . . Effects 143 | . 3 . 5 10 . 3 2 . . 4 2 . . 7 . 68 18 21 Message Errors 22 | . . . 1 2 . . . . . 2 2 . . 2 . 9 1 3 Matter Fused 40 | . 1 . 3 3 . 2 2 . . 1 . . . 1 . 19 3 5 Heat Flow Errors 18 | . . . . 2 . 1 . . . . . . . 1 . 8 1 5 Energy Discharges 14 | . 1 . 1 1 . . . . . . . . . 1 . 6 2 2 Parts Rejected 3 | . 1 . . . . . . . . . . . . . . 2 . . Data Loss (minor) 16 | . . . . 1 . . . . . . . . . . . 9 1 5 Data Loss (major) 7 | . . . . 1 . . . . . 1 . . . . . 3 1 1 Misfires 4 | . . . . . . . . . . . . . . 1 . 1 2 . Alerts 6 | . . . . . . . . . . . . . . 1 . 3 2 . Misdirections 6 | . . . . . . . . . . . . . . . . 2 4 . Weapon Failures 7 | . . . . . . . . . . . . . . . . 6 1 . Overload Shots 2 | . . . . . . . . . . . . . . . . 2 . . Overflow Damage 1565 | 12 . . 821 495 . . . 5 8 6 . . . 42 . 130 34 12 Projectiles 167 | . . . . . . . . 4 5 6 . . . 25 . 104 23 . Explosions 63 | 12 . . 30 . . . . 1 3 . . . . 17 . . . . Melee 1335 | . . . 791 495 . . . . . . . . . . . 26 11 12 Knockbacks 15 | . . . 4 2 . . . . . . . . . . . 1 2 6 Impact 14 | . . . 3 2 . . . . . . . . . . . 1 2 6 Kinetic . | . . . . . . . . . . . . . . . . . . . Secondary 1 | . . . 1 . . . . . . . . . . . . . . . Self-Inflicted Damage 409 | 9 . . . . . . . . . . 256 . . 83 . 28 . 33 Shots 12 | 1 . . . . . . . . . . 10 . . 1 . . . . Rammed 130 | . 9 . . 1 . . . . . . . . . . . 6 3 111 Targets Rammed 142 | . 9 . . 1 . . . . . . . . . . . 12 5 115 Kicked 3 | . . . . . . . . . . . . . . . . 3 . . Crushed 9 | . . . . . . . . . . . . . . . . 3 2 4 Highest Temperature 400 | 52 82 25 153 243 . 86 . 187 240 114 38 . . 196 165 400 334 249 Average Temperature 93 | 25 32 11 60 103 . 45 . 66 115 44 16 . . 104 87 114 113 70 Received Heat Transfer 2814 | . 171 33 519 416 . . . 9 303 126 66 . . 190 . 363 387 231 Effects 4 | . . . . . . . . . . . . . . . . 2 1 1 Energy Bleed 2 | . . . . . . . . . . . . . . . . 1 . 1 Interference 1 | . . . . . . . . . . . . . . . . . 1 . Damage (minor) 1 | . . . . . . . . . . . . . . . . 1 . . Siege Activations 1 | . . . . . . . . . . . . . . . . 1 . . Total Turns 18 | . . . . . . . . . . . . . . . . 18 . . Longest Duration 18 | . . . . . . . . . . . . . . . . 18 . . Martial Activations . | . . . . . . . . . . . . . . . . . . . Shielding Activations . | . . . . . . . . . . . . . . . . . . . Robots Disrupted . | . . . . . . . . . . . . . . . . . . . Combat Hostiles . | . . . . . . . . . . . . . . . . . . . Robots Corrupted 18 | . . . 11 5 . . . . 1 . . . . . . 1 . . Combat Hostiles 11 | . . . 7 2 . . . . 1 . . . . . . 1 . . Parts Fried 24 | 1 . . 8 6 . . . . 2 . . . . . . 5 . 2 Impact Corruptions 56 | . . . 33 15 . . . . . . . . . . . 2 1 5 Robots Melted 7 | . . . 1 . . . . . . 1 . . . . . 4 1 . Combat Hostiles 7 | . . . 1 . . . . . . 1 . . . . . 4 1 . Parts Melted 39 | . . . 5 . . . . 2 . 1 . . . 3 . 22 6 . Heat Transferred 12153 | 50 . . 555 . . . . 296 777 555 74 . . 1346 . 6586 1914 . Parts Sabotaged . | . . . . . . . . . . . . . . . . . . . Parts Stolen . | . . . . . . . . . . . . . . . . . . . Parts Stripped . | . . . . . . . . . . . . . . . . . . . Power Chain Reactions 2 | 2 . . . . . . . . . . . . . . . . . . Alert | -11 -10 -9 -9 -9 -7 -7 -7 -6 -6 -6 -6 -5 -5 -4 -3 -3 -2 -2 ------- Run | Yrd Mat Mat Sto Rec Fac Was Fac Fac Gar Fac Gar Fac DSF Fac Res Tes Res Gar Maximum Alert Level 3 | . . . . . 1 . . . 3 3 3 1 1 1 . 1 1 1 Low Security (%) 62 | 100 100 100 100 100 86 100 100 100 8 . . . . 39 100 44 64 57 Level 1 22 | . . . . . 13 . . . 19 . . 100 100 60 . 55 35 42 Level 2 7 | . . . . . . . . . 11 88 87 . . . . . . . Level 3 7 | . . . . . . . . . 60 11 12 . . . . . . . Level 4 . | . . . . . . . . . . . . . . . . . . . Level 5 . | . . . . . . . . . . . . . . . . . . . High Security . | . . . . . . . . . . . . . . . . . . . Max Security . | . . . . . . . . . . . . . . . . . . . Peak Influence 831 | 10 102 160 195 40 204 65 17 85 831 712 740 388 268 352 136 306 334 281 Initial 484 | . . 34 46 1 204 48 17 . 59 436 484 388 268 140 136 61 162 186 Average 196 | 2 22 84 47 3 173 46 8 39 587 549 605 385 268 230 121 199 185 194 Influence Increases 5459 | 25 192 186 727 164 205 47 . 191 822 426 306 5 . 450 4 949 520 240 Destroy 0b10 Robot/C 2460 | . 120 140 400 100 . . . 60 400 180 100 . . 80 . 540 240 100 Destroy 0b10 Robot/NC 255 | 25 15 . 75 25 . . . 15 10 15 . . . 15 . 25 35 . Destroy Leader 530 | . 42 20 120 . . . . 12 40 72 10 . . 20 . 122 62 10 Allied During Kill 57 | . . . 5 . . . . . 25 22 5 . . . . . . . Successful Hack 173 | . . . 35 8 . . . 33 14 31 . 5 . 12 . 23 12 . Select Force Hacks 30 | . . . . 30 . . . . . . . . . . . . . . Disable Machine 375 | . . 15 15 . . . . 15 15 75 . . . 75 . 120 45 . Anti-Garrison Action 150 | . . . . . . . . . 100 . 50 . . . . . . . Destroy Structure 584 | . . 11 47 1 5 47 . 11 113 16 36 . . 128 4 74 81 10 Advance Influence 200 | . . . . . 200 . . . . . . . . . . . . . Partial Spotted 75 | . . . 15 . . . . 15 . 15 15 . . . . . 15 . Lose Combat Pursuer 570 | . 15 . 15 . . . . 30 105 . 90 . . 120 . 45 30 120 Influence Decreases 5243 | 25 110 158 831 158 78 161 25 106 76 565 258 362 115 458 154 769 562 272 Entered New Map 1811 | . . 48 64 5 8 91 8 . 26 395 208 352 115 128 124 49 128 62 Time Decay 2365 | 25 90 110 420 153 70 40 17 106 . 140 . 10 . 310 30 550 294 . Lost Part 706 | . 20 . 116 . . 10 . . 30 . 10 . . . . 170 140 210 Lost Ally 190 | . . . 60 . . 20 . . 20 30 40 . . 20 . . . . Purge Threat 171 | . . . 171 . . . . . . . . . . . . . . . Squads Dispatched 41 | . 3 . 8 . . . 1 1 . 5 . . 2 3 . 11 7 . Investigation 9 | . 1 . 2 . . . 1 . . 3 . . . 1 . 1 . . Extermination 8 | . . . . . . . . . . . . . . 2 . 4 2 . Reinforcement 11 | . 2 . . . . . . . . 2 . . 2 . . . 5 . Assault . | . . . . . . . . . . . . . . . . . . . Garrison 13 | . . . 6 . . . . 1 . . . . . . . 6 . . Intercept . | . . . . . . . . . . . . . . . . . . . Searches Triggered . | . . . . . . . . . . . . . . . . . . . Construction Impeded 3 | . . . . . . . . . . . . . . . . . 3 . Haulers Reinforced . | . . . . . . . . . . . . . . . . . . . Active Scanning Responses . | . . . . . . . . . . . . . . . . . . . Cargo Convoy Interrupts . | . . . . . . . . . . . . . . . . . . . Stealth | -11 -10 -9 -9 -9 -7 -7 -7 -6 -6 -6 -6 -5 -5 -4 -3 -3 -2 -2 --------- Run | Yrd Mat Mat Sto Rec Fac Was Fac Fac Gar Fac Gar Fac DSF Fac Res Tes Res Gar Distress Signals 9 | . 1 . 3 . . . . . . 1 . . . . . 3 1 . Communications Jammed . | . . . . . . . . . . . . . . . . . . . Distress Signals . | . . . . . . . . . . . . . . . . . . . Times Spotted 253 | . 16 9 29 7 . 6 . 8 28 17 14 . . 14 . 41 36 28 Peak Tracking Total 16 | . 6 5 4 4 . 5 . 4 6 6 8 . . 4 . 6 15 16 Tactical Retreats 21 | . 1 . 1 . . . . 1 5 . 3 . . 4 . 2 2 2 Traps | -11 -10 -9 -9 -9 -7 -7 -7 -6 -6 -6 -6 -5 -5 -4 -3 -3 -2 -2 ------- Run | Yrd Mat Mat Sto Rec Fac Was Fac Fac Gar Fac Gar Fac DSF Fac Res Tes Res Gar Traps Triggered 22 | . 1 . 4 . 3 . . . 5 . 2 . . . . 5 1 1 Indirectly . | . . . . . . . . . . . . . . . . . . . Trap Hack Attempts . | . . . . . . . . . . . . . . . . . . . Triggered . | . . . . . . . . . . . . . . . . . . . Disarmed . | . . . . . . . . . . . . . . . . . . . Reprogrammed . | . . . . . . . . . . . . . . . . . . . Reused . | . . . . . . . . . . . . . . . . . . . Traps Extracted . | . . . . . . . . . . . . . . . . . . . Installed . | . . . . . . . . . . . . . . . . . . . Triggered . | . . . . . . . . . . . . . . . . . . . Machines | -11 -10 -9 -9 -9 -7 -7 -7 -6 -6 -6 -6 -5 -5 -4 -3 -3 -2 -2 ---------- Run | Yrd Mat Mat Sto Rec Fac Was Fac Fac Gar Fac Gar Fac DSF Fac Res Tes Res Gar Machines Disabled 31 | . . 1 1 . . . . 1 5 5 2 . . 5 . 8 3 . Max in Single Turn 1 | . . 1 1 . . . . 1 1 1 1 . . 1 . 1 1 . Garrison Access 1 | . . . . . . . . . . . . . . . . 1 . . Garrison Relay 4 | . . . . . . . . . 2 . 1 . . . . . . 1 Machines Repaired . | . . . . . . . . . . . . . . . . . . . Machines Dismantled 1 | . . . . . . . . . . . . . . . . 1 . . Machines Sabotaged . | . . . . . . . . . . . . . . . . . . . Overloaded Fab Kills . | . . . . . . . . . . . . . . . . . . . Hacking | -11 -10 -9 -9 -9 -7 -7 -7 -6 -6 -6 -6 -5 -5 -4 -3 -3 -2 -2 --------- Run | Yrd Mat Mat Sto Rec Fac Was Fac Fac Gar Fac Gar Fac DSF Fac Res Tes Res Gar Machines Accessed 56 | . . 2 13 11 1 . 2 5 1 5 . 1 . 5 1 6 3 . Terminals 27 | . . 2 9 5 . . . 3 1 1 . 1 . 2 . 3 . . Fabricators 10 | . . . . . . . 1 1 . 2 . . . 3 . 1 2 . Repair Stations 4 | . . . 2 . . . . . . . . . . . 1 1 . . Recycling Units 6 | . . . 1 5 . . . . . . . . . . . . . . Scanalyzers 2 | . . . . . 1 . . . . 1 . . . . . . . . Garrison Access 6 | . . . 1 . . . 1 1 . 1 . . . . . 1 1 . Total Hacks 122 | . . 6 26 28 5 . 5 8 2 12 . 1 . 12 1 12 4 . Successful 70 | . . 2 19 17 4 . . 4 1 8 . 1 . 7 . 4 3 . Failed 52 | . . 4 7 11 1 . 5 4 1 4 . . . 5 1 8 1 . Catastrophic 7 | . . . . 1 . . 2 2 . 1 . . . . . 1 . . Database Lockouts . | . . . . . . . . . . . . . . . . . . . Manual 51 | . . 6 12 16 . . 1 1 . 2 . . . 7 . 5 1 . Terminals 61 | . . 6 20 12 . . . 6 2 2 . 1 . 6 . 6 . . Fabricators 22 | . . . . . . . 2 1 . 7 . . . 6 . 3 3 . Repair Stations 7 | . . . 4 . . . . . . . . . . . 1 2 . . Recycling Units 15 | . . . 1 14 . . . . . . . . . . . . . . Scanalyzers 7 | . . . . . 5 . . . . 2 . . . . . . . . Garrison Access 8 | . . . 1 . . . 3 1 . 1 . . . . . 1 1 . Terminal Hacks 25 | . . 1 14 3 . . . 2 1 1 . 1 . 2 . . . . Record 1 | . . . . . . . . . . . . . . 1 . . . . Part Schematic 1 | . . . 1 . . . . . . . . . . . . . . . Robot Schematic 2 | . . . 2 . . . . . . . . . . . . . . . Robot Analysis 2 | . . . 2 . . . . . . . . . . . . . . . Prototype ID Bank 1 | . . . . 1 . . . . . . . . . . . . . . Open Door 5 | . . . 5 . . . . . . . . . . . . . . . Open DSF 3 | . . . . . . . . . . 1 . 1 . 1 . . . . Branch Access Points 2 | . . 1 1 . . . . . . . . . . . . . . . Emergency Access Points 2 | . . . . . . . . 1 1 . . . . . . . . . Terminal Index 1 | . . . . . . . . 1 . . . . . . . . . . Unreport Threat 2 | . . . 2 . . . . . . . . . . . . . . . Zone Layout 1 | . . . 1 . . . . . . . . . . . . . . . Release Object 2 | . . . . 2 . . . . . . . . . . . . . . Fabricator Hacks 7 | . . . . . . . . 1 . 3 . . . 2 . . 1 . Network Status 2 | . . . . . . . . . . . . . . 1 . . 1 . Load Schematic 2 | . . . . . . . . . . 2 . . . . . . . . Build 3 | . . . . . . . . 1 . 1 . . . 1 . . . . Repair Station Hacks 3 | . . . 1 . . . . . . . . . . . . 2 . . Scan Component 1 | . . . . . . . . . . . . . . . . 1 . . Repair 1 | . . . . . . . . . . . . . . . . 1 . . Refit 1 | . . . 1 . . . . . . . . . . . . . . . Recycling Unit Hacks 5 | . . . 1 4 . . . . . . . . . . . . . . Retrieve Matter 1 | . . . . 1 . . . . . . . . . . . . . . Retrieve Components 4 | . . . 1 3 . . . . . . . . . . . . . . Scanalyzer 5 | . . . . . 4 . . . . 1 . . . . . . . . Insert Component 3 | . . . . . 2 . . . . 1 . . . . . . . . Analyze 2 | . . . . . 2 . . . . . . . . . . . . . Garrison Access Hacks 4 | . . . . . . . . 1 . 1 . . . . . 1 1 . Unlock Access 3 | . . . . . . . . 1 . 1 . . . . . . 1 . Seal Access 1 | . . . . . . . . . . . . . . . . 1 . . Unauthorized Hacks 21 | . . 1 3 10 . . . . . 2 . . . 3 . 1 1 . Terminals 8 | . . 1 1 5 . . . . . . . . . . . 1 . . Track 1 | . . . . 1 . . . . . . . . . . . . . . Botnet 4 | . . 1 1 1 . . . . . . . . . . . 1 . . Skim 3 | . . . . 3 . . . . . . . . . . . . . . Fabricators 6 | . . . . . . . . . . 2 . . . 3 . . 1 . Prioritize 1 | . . . . . . . . . . 1 . . . . . . . . Liberate 5 | . . . . . . . . . . 1 . . . 3 . . 1 . Repair Stations 1 | . . . 1 . . . . . . . . . . . . . . . Patch 1 | . . . 1 . . . . . . . . . . . . . . . Recycling Units 5 | . . . . 5 . . . . . . . . . . . . . . Reject 4 | . . . . 4 . . . . . . . . . . . . . . Tunnel 1 | . . . . 1 . . . . . . . . . . . . . . Scanalyzers . | . . . . . . . . . . . . . . . . . . . Garrison Access 1 | . . . 1 . . . . . . . . . . . . . . . Reprogram 1 | . . . 1 . . . . . . . . . . . . . . . Data Cores Recovered 1 | . . . . . . . . 1 . . . . . . . . . . Used 1 | . . . . . . . . 1 . . . . . . . . . . Hacking Detections 39 | . . 1 8 6 . . 2 5 1 4 . . . 3 1 5 3 . Full Trace Events 9 | . . . . 3 . . 1 . . 3 . . . 1 . 1 . . Feedback Events 1 | . . . . . . . . . . 1 . . . . . . . . Corruption 1 | . . . . . . . . . . 1 . . . . . . . . Feedback Blocked . | . . . . . . . . . . . . . . . . . . . Robot Schematics Acquired 2 | . . . 2 . . . . . . . . . . . . . . . Robots Built 3 | . . . . . . . . . . 1 . . . 2 . . . . Authchips . | . . . . . . . . . . . . . . . . . . . Time 192 | . . . . . . . . . . 40 . . . 152 . . . . Total Robot Build Rating 11 | . . . . . . . . . . 1 . . . 10 . . . . Part Schematics Acquired 4 | . . . 1 . 1 . . . . . . . . . . 2 . . Parts Built 2 | . . . . . . . . 2 . . . . . . . . . . Authchips . | . . . . . . . . . . . . . . . . . . . Time 58 | . . . . . . . . 58 . . . . . . . . . . Total Part Build Rating 14 | . . . . . . . . 14 . . . . . . . . . . Part Studies Acquired . | . . . . . . . . . . . . . . . . . . . Parts Repaired . | . . . . . . . . . . . . . . . . . . . Time 56 | . . . . . . . . . . . . . . . . 56 . . Parts Recycled . | . . . . . . . . . . . . . . . . . . . Recycled Matter . | . . . . . . . . . . . . . . . . . . . Retrieved Matter . | . . . . . . . . . . . . . . . . . . . Retrieved Components 14 | . . . 5 9 . . . . . . . . . . . . . . Parts Scanalyzed 2 | . . . . . 2 . . . . . . . . . . . . . Part Schematics Acquired 1 | . . . . . 1 . . . . . . . . . . . . . Parts Damaged . | . . . . . . . . . . . . . . . . . . . Bothacking | -11 -10 -9 -9 -9 -7 -7 -7 -6 -6 -6 -6 -5 -5 -4 -3 -3 -2 -2 ------------ Run | Yrd Mat Mat Sto Rec Fac Was Fac Fac Gar Fac Gar Fac DSF Fac Res Tes Res Gar Used RIF Installer 1 | . . . . . . . . . 1 . . . . . . . . . Robots Hacked 11 | . . . . . . . . . 1 4 3 . . . . 3 . . Non-combat . | . . . . . . . . . . . . . . . . . . . Combat 11 | . . . . . . . . . 1 4 3 . . . . 3 . . Robot Hacks Applied 15 | . . . . . . . . . 1 4 4 . . . . 6 . . disable_scanner 2 | . . . . . . . . . . . . . . . . 2 . . report_analyses 3 | . . . . . . . . . . . . . . . . 3 . . find_garrison 1 | . . . . . . . . . . 1 . . . . . . . . reboot_propulsion 1 | . . . . . . . . . . . 1 . . . . . . . amplify_resonance 3 | . . . . . . . . . . 2 1 . . . . . . . go_dormant 1 | . . . . . . . . . . 1 . . . . . . . . overwrite_iff 2 | . . . . . . . . . . . 2 . . . . . . . formatsys_low 1 | . . . . . . . . . . . . . . . . 1 . . formatsys_high 1 | . . . . . . . . . 1 . . . . . . . . . Relay Couplers Released 24 | . . . . . . . . . 7 . 5 . . . . 4 4 4 Machine Destruction 16 | . . . . . . . . . 7 . 5 . . . . . . 4 Programmers 8 | . . . . . . . . . . . . . . . . 4 4 . Attached 9 | . . . . . . . . . 1 1 1 . . . . 1 1 4 Fabnet Peak Effective % . | . . . . . . . . . . . . . . . . . . . Robots Rewired 6 | . . . . 4 . . . . 1 . 1 . . . . . . . Allies Hacked 1 | . . . . . . . . . . 1 . . . . . . . . Hacks Repelled . | . . . . . . . . . . . . . . . . . . . Allies | -11 -10 -9 -9 -9 -7 -7 -7 -6 -6 -6 -6 -5 -5 -4 -3 -3 -2 -2 -------- Run | Yrd Mat Mat Sto Rec Fac Was Fac Fac Gar Fac Gar Fac DSF Fac Res Tes Res Gar Total Allies 17 | . . . 3 4 . 1 . . 2 1 3 . . 2 . 1 . . Largest Group 4 | . . . 3 4 1 1 . . 1 2 1 . . 2 . 1 . . Highest-Rated Group 130 | . . . 24 58 27 31 . . 116 130 116 . . 40 . 49 . . Highest-Rated Ally 116 | . . . 8 27 27 31 . . 116 116 116 . . 20 . 49 . . Total Orders 3 | . . . . 1 1 . . . . 1 . . . . . . . . AID 1 | . . . . . . . . . . 1 . . . . . . . . EXPLORE 2 | . . . . 1 1 . . . . . . . . . . . . . Ally Attacks 110 | . . . 26 6 . 19 . . 25 15 18 . . . . 1 . . Total Damage 3550 | . . . 248 81 . 320 . . 1212 886 803 . . . . . . . Kills 18 | . . . 1 1 . . . . 7 7 2 . . . . . . . Allies Corrupted . | . . . . . . . . . . . . . . . . . . . Allies Melted 1 | . . . . 1 . . . . . . . . . . . . . . Intel | -11 -10 -9 -9 -9 -7 -7 -7 -6 -6 -6 -6 -5 -5 -4 -3 -3 -2 -2 ------- Run | Yrd Mat Mat Sto Rec Fac Was Fac Fac Gar Fac Gar Fac DSF Fac Res Tes Res Gar Active Infowar (turns) 2713 | 20 96 . . . . . . 83 . . . . . . 77 1594 643 200 Optics 1827 | . . . . . . . . . . . . . . . . 984 643 200 Sensors 893 | . . . . . . . . . . . . . . . 77 816 . . Terrain 307 | . . . . . . . . . . . . . . . 65 242 . . Structural 58 | . . . . . . . . . . . . . . . . 58 . . Seismic 116 | 20 96 . . . . . . . . . . . . . . . . . Jamming 83 | . . . . . . . . 83 . . . . . . . . . . Robot Analysis Total 2 | . . . 2 . . . . . . . . . . . . . . . Derelict Logs Recovered . | . . . . . . . . . . . . . . . . . . . Drone Launches 5 | . . . . 2 3 . . . . . . . . . . . . . Drone Recoveries 5 | . . . . 2 3 . . . . . . . . . . . . . Exploration | -11 -10 -9 -9 -9 -7 -7 -7 -6 -6 -6 -6 -5 -5 -4 -3 -3 -2 -2 ------------- Run | Yrd Mat Mat Sto Rec Fac Was Fac Fac Gar Fac Gar Fac DSF Fac Res Tes Res Gar Turns Passed 9223 | 106 289 235 1070 1741 149 91 53 294 1050 298 307 24 108 685 77 1594 643 409 Spaces Moved 6603 | 52 151 137 605 1009 227 140 107 476 708 287 399 39 140 556 91 903 417 159 Core 4 | 3 . . . . . . . . . . . . . . . . . 1 Treads 1576 | . 20 137 142 350 . . . . 25 . . . . 55 91 574 118 64 Legs 1065 | . . . 132 367 . . . . 22 . . . . . . 245 299 . Wheels 381 | 49 131 . 201 . . . . . . . . . . . . . . . Hover 105 | . . . . . . . . . 21 . . . . . . 84 . . Flight 3472 | . . . 130 292 227 140 107 476 640 287 399 39 140 501 . . . 94 Fastest Speed 31 | 50 100 160 31 57 45 45 45 39 39 68 54 54 54 54 70 57 65 50 Average Speed 81 | 97 109 160 109 118 45 45 45 39 52 68 54 54 54 56 70 94 95 122 Slowest Speed 330 | 100 240 160 330 190 45 45 45 39 147 68 54 54 54 119 70 144 139 161 Overloaded Moves . | . . . . . . . . . . . . . . . . . . . Propulsion Burnouts . | . . . . . . . . . . . . . . . . . . . Robots Hopped 24 | . . . . 1 . . . 1 1 4 6 2 . 3 . . . 6 Potential Cave-ins . | . . . . . . . . . . . . . . . . . . . Cave-ins Triggered . | . . . . . . . . . . . . . . . . . . . Exploration Rate (%) 34 | 4 40 14 69 99 10 74 3 12 57 9 43 2 84 13 2 74 17 24 Regions Visited 18 Branch Regions 3 Pre-discovered Areas 1 | . . . . 1 . . . . . . . . . . . . . . Known Exits Taken 9 | . . 1 1 . . . . 1 . 1 . 1 . 1 1 1 1 . Unknown Exits Taken 4 | 1 1 . . 1 . . 1 . . . . . . . . . . . Scrap Searched . | . . . . . . . . . . . . . . . . . . . Spaces Dug 89 | . . . 11 1 5 . . . . . . . . 50 2 6 14 . Terrain Destroyed 503 | 2 . 10 71 1 5 71 . 11 135 1 53 . . 73 3 35 32 . Melee 17 | . . . 11 1 5 . . . . . . . . . . . . . Projectile 122 | . . . . . . . . 9 2 1 1 . . 39 3 35 32 . AOE 364 | 2 . 10 60 . . 71 . 2 133 . 52 . . 34 . . . . Terrain Rammed 1 | . . . . . . . . . . . . . . . . 1 . . Walls Destroyed . | . . . . . . . . . . . . . . . . . . . Machines Disabled . | . . . . . . . . . . . . . . . . . . . Actions | -11 -10 -9 -9 -9 -7 -7 -7 -6 -6 -6 -6 -5 -5 -4 -3 -3 -2 -2 --------- Run | Yrd Mat Mat Sto Rec Fac Was Fac Fac Gar Fac Gar Fac DSF Fac Res Tes Res Gar Total 9371 | 80 211 146 854 1482 255 155 111 560 1276 363 467 39 172 868 101 1388 534 309 Wait 1576 | 5 12 . 70 321 11 . 3 40 457 47 42 . 6 264 . 278 7 13 Move 6544 | 51 150 136 604 1006 227 139 106 473 705 280 387 34 139 549 90 902 417 149 Hop 19 | . . . . 1 . . . 1 1 3 4 2 . 3 . . . 4 Pick Up 104 | 4 1 1 23 8 1 2 . 11 11 3 1 1 11 9 3 9 5 . Fast Attach 88 | 7 3 1 18 3 . . 1 6 3 . 1 . 1 1 . 26 11 6 Attach 70 | . . 4 14 2 4 1 . 4 7 2 2 2 1 3 3 7 9 5 Detach 19 | . . . 6 1 1 . 1 3 1 . . . . . 1 . 3 2 Swap 39 | . 1 . 6 4 . . . 1 6 1 1 . 3 2 . 10 4 . Drop 118 | . 2 . 20 20 . 1 . 3 13 2 3 . 10 9 2 18 13 2 Fire 422 | 13 33 4 19 . . 12 . 18 68 25 18 . 1 27 2 113 60 9 Melee 126 | . . . 74 37 11 . . . 4 . . . . . . . . . Ram 42 | . . . . . . . . . . . . . . . . 1 . 41 Kick 3 | . . . . . . . . . . . . . . . . 3 . . Crush 98 | . 9 . . 1 . . . . . . . . . . . 9 5 74 Escape Stasis 9 | . . . . . . . . . . . . . . . . 5 . 4 Rewire 86 | . . . . 78 . . . . . . 8 . . . . . . . Trap . | . . . . . . . . . . . . . . . . . . . Miscellaneous 8 | . . . . . . . . . . . . . . 1 . 7 . . Route ------- -11/Scrapyard -10/Materials (discovered 2 exits: *Mat / [*Min]) -9/Materials (discovered 2 exits: Min / *Sto) -9/Storage -9/Recycling -7/Factory -7/Waste -7/Factory -6/Factory -6/Garrison -6/Factory -6/Garrison -5/Factory -5/DSF -4/Factory -3/Research -3/Testing -2/Research -2/Garrison History --------- Turn | Location | Event 7 | -11/Scrapyard | Discovered new exit (range 15) 107 | -11/Scrapyard | Entered Materials 237 | -10/Materials | Discovered new exit (range 6) 310 | -10/Materials | Discovered new exit (range 10) 316 | -10/Materials | Build established: Mutant 396 | -10/Materials | Entered another Materials area 396 | -9/Materials | Evolved 2 slots: Propulsion x2 441 | -9/Materials | Identified exit to Mines 441 | -9/Materials | Identified exit to Storage 631 | -9/Materials | Entered Storage 737 | -9/Storage | Garrison activated, responded to threat 977 | -9/Storage | Found Prototype Launcher 1067 | -9/Storage | Garrison activated, responded to threat 1118 | -9/Storage | Lost 3 allies 1192 | -9/Storage | Lost 3 parts (2n1u) 1352 | -9/Storage | Lost 4 parts (1p2n1u) 1358 | -9/Storage | Identified exit to Recycling 1690 | -9/Storage | Used back door to open Recycling access 1701 | -9/Storage | Entered Recycling 1705 | -9/Recycling | Identified Gui. Missile Launcher 2062 | -9/Recycling | Core integrity fell below 50% 2492 | -9/Recycling | Discovered new exit (range 6) 2496 | -9/Recycling | Build established: Commander-Mutant 2663 | -9/Recycling | Scanned before Scraplab entrance 2694 | -9/Recycling | Angered Scraplab inhabitants 2736 | -9/Recycling | Lost 3 allies 2758 | -9/Recycling | Found Prototype Device 2758 | -9/Recycling | Identified Scrap Engine 3147 | -9/Recycling | Build established: Construct 3442 | -9/Recycling | Entered Factory 3442 | -7/Factory | Accompanied by 1 ally 3442 | -7/Factory | Evolved 4 slots: Power x1, Propulsion x1, Utility x2 3591 | -7/Factory | Sucked down chute 3591 | -7/Factory | Entered Waste 3592 | -7/Waste | Met a frightened Derelict 3606 | -7/Waste | EMP discharged 3608 | -7/Waste | Spotted C-40 Crusher 3612 | -7/Waste | Spotted C-40 Crusher 3636 | -7/Waste | Destroyed C-40 Crusher 3645 | -7/Waste | Spotted C-40 Crusher 3645 | -7/Waste | Spotted C-40 Crusher 3652 | -7/Waste | Spotted C-40 Crusher 3659 | -7/Waste | Destroyed C-40 Crusher 3662 | -7/Waste | Spotted C-40 Crusher 3667 | -7/Waste | Crushed by Compactor (1 part destroyed) 3671 | -7/Waste | 1 allies followed down the chute 3675 | -7/Waste | Discovered new exit (range 15) 3682 | -7/Waste | Entered Factory 3710 | -7/Factory | Discovered new exit (range 7) 3735 | -7/Factory | Entered another Factory area 3735 | -6/Factory | Evolved 2 slots: Propulsion x1, Utility x1 3817 | -6/Factory | Fabricated Adv. Coolant Injector (x2) 3976 | -6/Factory | Garrison activated, responded to threat 4018 | -6/Factory | Identified exit to Garrison 4029 | -6/Factory | Entered Garrison 4052 | -6/Garrison | Spotted B-75 Beast 4102 | -6/Garrison | Triggered checkpoint 4172 | -6/Garrison | Installed Relay Interface Framework 4189 | -6/Garrison | Garrison Relay disabled 4239 | -6/Garrison | Triggered checkpoint 4353 | -6/Garrison | Triggered checkpoint 4411 | -6/Garrison | Spotted B-75 Beast 4412 | -6/Garrison | Build established: Mutant 4417 | -6/Garrison | Rewired B-86 Titan 4433 | -6/Garrison | Destroyed B-75 Beast 4825 | -6/Garrison | Build established: Construct 5001 | -6/Garrison | Triggered checkpoint 5020 | -6/Garrison | Garrison Relay disabled 5046 | -6/Garrison | Discovered new exit (range 12) 5079 | -6/Garrison | Entered Factory 5079 | -6/Factory | Accompanied by 1 ally 5135 | -6/Factory | Fabricated M-13 Machinist (x1) 5135 | -6/Factory | Identified exit to DSF 5254 | -6/Factory | Found Prototype Launcher 5270 | -6/Factory | Identified Rocket Array 5377 | -6/Factory | Identified exit to Garrison 5377 | -6/Factory | Entered Garrison 5415 | -6/Garrison | Triggered checkpoint 5451 | -6/Garrison | Triggered checkpoint 5451 | -6/Garrison | Spotted B-75 Beast 5474 | -6/Garrison | Garrison Relay disabled 5586 | -6/Garrison | Core integrity fell below 50% 5604 | -6/Garrison | Spotted B-86 Titan 5630 | -6/Garrison | Rewired B-86 Titan 5666 | -6/Garrison | Discovered new exit (range 10) 5684 | -6/Garrison | Entered Factory 5684 | -5/Factory | Evolved 2 slots: Utility x1, Weapon x1 5708 | -5/Factory | Identified exit to DSF 5708 | -5/Factory | Entered DSF 5709 | -5/DSF | Joined Warlord attack on 0b10 via DSF 5730 | -5/DSF | Found Prototype Protection 5730 | -5/DSF | Identified Centrium Heavy Armor Plating 5735 | -5/DSF | Additional patrols routed to DSF 5738 | -5/DSF | Found Centrium Heavy Armor Plating 5786 | -5/DSF | Lost 4 allies 5801 | -5/DSF | Discovered new exit (range 16) 5816 | -5/DSF | Identified exit to Factory 5816 | -5/DSF | Entered Factory 5816 | -4/Factory | Evolved 2 slots: Utility x2 5922 | -4/Factory | Discovered new exit (range 15) 5930 | -4/Factory | Identified exit to Research 6048 | -4/Factory | Spotted B-86 Titan 6115 | -4/Factory | Build established: Tank 6177 | -4/Factory | Fabricated R-10 Processor? 6483 | -4/Factory | Build established: Construct 6501 | -4/Factory | Entered Research 6501 | -3/Research | Evolved 2 slots: Utility x1, Weapon x1 6527 | -3/Research | Discovered new exit (range 9) 6532 | -3/Research | Identified exit to Testing 6578 | -3/Research | Entered Testing 7147 | -3/Testing | Build established: Tank 7188 | -3/Testing | Found Prototype Processor 7188 | -3/Testing | Identified Spectral Analyzer 7217 | -3/Testing | Discovered new exit (range 8) 7365 | -3/Testing | System corruption reached 10% 7389 | -3/Testing | Garrison activated, responded to threat 7600 | -3/Testing | Lost 4 parts (2u2w) 7604 | -3/Testing | System corruption reached 30% 7823 | -3/Testing | Found Prototype Energy Cannon 7823 | -3/Testing | Identified Disintegrator 7913 | -3/Testing | Lost 5 parts (2n1u2w) 8171 | -3/Testing | Identified exit to Research 8172 | -3/Testing | Entered Research 8172 | -2/Research | Evolved 2 slots: Propulsion x1, Utility x1 8241 | -2/Research | Spotted B-90 Cyclops 8650 | -2/Research | System corruption reached 10% 8750 | -2/Research | Lost 4 parts (1p1u2w) 8812 | -2/Research | System corruption reached 30% 8815 | -2/Research | Identified exit to Garrison 8815 | -2/Research | Entered Garrison 8833 | -2/Garrison | Lost 6 parts (2n4u) 8873 | -2/Garrison | Triggered checkpoint 8887 | -2/Garrison | Garrison Relay disabled 8968 | -2/Garrison | Core integrity fell below 50% 8979 | -2/Garrison | Lost 8 parts (1p4n2u1w) 9050 | -2/Garrison | Build established: Mutant 9176 | -2/Garrison | Spotted B-90 Cyclops 9217 | -2/Garrison | Core integrity fell below 20% 9224 | -2/Garrison | Destroyed by G-73 Enforcer with Heavy Laser Last Messages --------------- 09218_ Relay Coupler [Duelist] destroyed. 09219_ Overheating: Energy bleed (-17). 09219_ P-80 Master resets G-73 Enforcer, system corruption cleaned. 09220_ Xenon Bombardment Thruster destroyed. 09220_ Dropped Lrg. Storage Unit. 09220_ Flying Antigrav-Myomer Exoskeleton destroyed. 09220_ Scrap Engine damaged due to network destabilization (-5). 09221_ Triggered Stasis Trap. 09221_ A bubble of rippling energy engulfs the area. 09221_ Field strength at 94. 09221_ Field strength at 88. 09222_ Field strength at 75. 09223_ Field strength at 35. 09224_ Scrap Engine destroyed. 09224_ Field strength at 5. 09224_ Stasis field depleted. Map ----- +----------------------------------------------------+ | ?????????????????????????????????????????# %###??? | | ?????????????????????????????????????????# %#????? | | ?????????????????????????????????????????# %#????# | | ?????????????????????????????????????????# %#???## | | ?????????????????????????????????????????#%%#??## | | ?????????????????????????????????????????#%%#??# | | ?????????????????????????????????????????#%%#??# | | ??????????????????????????################ %#???? | | ??????????????????????????# %###??? | | ??????????????????????????# %+%#??? | | ??????????????????????????# ########### ####%#### | | ??????????????????????????# #?????????# #??#%%%%% | | ??????????????????????????# #?????????# #??# #### | | ??????????????????????????# #?????????# #??#%#??? | | ??????????????????????????# +?????????# #?##+##?? | | ????????????????????####??# #?????????# #?# % #?? | | ????????????????????# ?# #?????????# ###%%%### | | ???????????????###### ## ##???###??# % | | ???????????????# g #??## ##?######"#### | | ????????????? ss####"""######## #??? | | ????????????? ss* B #??? | | ???????????????# ???# ##spgg;"""##"#########??? | | ?????????????### ## ## s#########??????????? | | ?????????????# / #????????????????? | | ?????????????# !!! C#????????????????? | | ?????????????# @| C#????????????????? | | ?????????????# C#????????????????? | | ?????????????### ## ##ss ###????????????????? | | ???????????????# ???# ?# #??????????????????? | | ??????????????????? ? #??????????????????? | | ?????????????????? ? #??????????????????? | | ???????????????? ?? #??????????????????? | | ???????????????##;### ??# ##??????????????????? | | ????????????????#???# ??# #???????????????????? | | ????????????????????####??# #???????????????????? | | ??????????????????????????? #???????????????????? | | ??????????????????????????? T???????????????????? | | ??????????????????????????? #???????????????????? | | ??????????????????????????? #???????????????????? | | ?????????????????????????????????????????????????? | | ?????????????????????????????????????????????????? | | ?????????????????????????????????????????????????? | | ?????????????????????????????????????????????????? | | ?????????????????????????????????????????????????? | | ?????????????????????????????????????????????????? | | ?????????????????????????????????????????????????? | | ?????????????????????????????????????????????????? | | ?????????????????????????????????????????????????? | | ?????????????????????????????????????????????????? | | ?????????????????????????????????????????????????? | +----------------------------------------------------+ Best States ------------- Heat Dissipation 87 Coolant Potential 100 Energy Generation 49 Energy Capacity 663 Matter Stores 300 Matter Capacity 300 Sight Range 24 Robot Scan Range 16 Terrain Scan Range 20 Terrain Scan Density 10 Jamming Range 12 Power Amplification 40 Armor Coverage 1200 Resistance: TH 30 Evasion (%) 71 Target Analysis 12 Recoil Reduction 6 Offensive Hacking 10 Defensive Hacking 10 Relay Coupler Types 5 Relay Coupler Value 123 Authchip Count 2 Item Schematics ----------------- Hpw. Shotgun | -9/Storage | Hacked Imp. Flight Unit | -7/Factory | Scanalyzed Cld. Impulse Thruster | -3/Testing | Archive Com. Tesla Bomb Launcher | -3/Testing | Archive Robot Schematics ------------------ M-13 Machinist | -9/Storage | Hacked G-34 Mercenary | -9/Storage | Hacked Fabricated ------------ Adv. Coolant Injector | x2 | -6/Factory | Preloaded M-13 Machinist | x1 | -6/Factory R-10 Processor | x2 | -4/Factory | Preloaded Repaired ---------- Nothing Studied --------- None Alien Tech Used ----------------- None Achievements -------------- Join The Dark Side Mindtrick Challenges ------------ None Game ------ Seed FlakCorruptionInterface Manual? 0 Play Time 02:10:21 Cumulative 768.5 hours Start 2026.01.10 @ 20:55:12 End 2026.01.10 @ 23:02:56 Sessions 1 Manual Loads 0 Difficulty Rogue Special Mode None Game No. 187 Rogue 49 Adventurer 138 Explorer 0 Win Type - Total 11 Types 7/0/1/2/0/0/0/0/1/0 Lore% 79 Gallery% 78 Achievement% 56 Wizard Run 0 Options --------- Layout 2 ASCII 0 Keyboard 0 Movement Mouse Keybinds 0 Fullscreen 1 Font 24/Smallcaps Map View 50x49 Zoom Use 0% Tactical HUD 1 Map Filters NONE Filters NONE Steam 1 RUN: e74d7ed6-1f22-4f07-912a-9d64c31360b6